fUSD/lending_fUSD_20250219
["ID","MTS","AMOUNT","RATE_DAILY","PERIOD"]
[353711630,1739995849632,-622.95,0.00011408,2]
[353711631,1739995849642,-500.0,0.00011408,2]
[353711633,1739995849651,-500.0,0.00011408,2]
[353711634,1739995849661,-500.0,0.00011408,2]
[353711635,1739995849670,-587.31,0.00011408,2]
[353711636,1739995849679,-500.0,0.00011408,2]
[353711637,1739995849689,-500.0,0.00011408,2]
[353711638,1739995849698,-500.0,0.00011408,2]
[353711639,1739995849708,-585.71,0.00011408,2]
[353711641,1739995849717,-524.38,0.00011408,2]
[353711642,1739995849727,-500.0,0.00011408,2]
[353711644,1739995849738,-500.0,0.00011408,2]
[353711646,1739995849748,-500.0,0.00011408,2]
[353711648,1739995849758,-314.97662,0.00011408,2]
[353711650,1739995849769,-500.0,0.00011408,2]
[353711652,1739995849779,-167.86633358,0.00011408,2]
[353711654,1739995849789,-500.0,0.00011408,2]
[353711656,1739995849799,-500.0,0.00011408,2]
[353711658,1739995849808,-568.51905529,0.00011408,2]
[353711660,1739995849818,-500.0,0.00011408,2]
[353711662,1739995849828,-500.0,0.00011408,2]
[353711664,1739995849838,-500.0,0.00011408,2]
[353711666,1739995849848,-500.0,0.00011408,2]
[353711668,1739995849859,-522.39,0.00011408,2]
[353711670,1739995849868,-500.0,0.00011408,2]
[353711672,1739995849878,-500.0,0.00011408,2]
[353711674,1739995849888,-230.212476,0.00011408,2]
[353711676,1739995849898,-500.0,0.00011408,2]
[353711678,1739995849909,-500.0,0.00011408,2]
[353711680,1739995849919,-500.0,0.00011408,2]
[353711682,1739995849931,-500.0,0.00011408,2]
[353711684,1739995849941,-500.0,0.00011408,2]
[353711686,1739995849951,-714.19,0.00011408,2]
[353711688,1739995849961,-500.0,0.00011408,2]
[353711690,1739995849971,-500.0,0.00011408,2]
[353711692,1739995849981,-500.0,0.00011408,2]
[353711694,1739995849991,-500.0,0.00011408,2]
[353711696,1739995850000,-500.0,0.00011408,2]
[353711698,1739995850010,-500.0,0.00011408,2]
[353711700,1739995850020,-500.0,0.00011408,2]
[353711702,1739995850031,-500.0,0.00011408,2]
[353711705,1739995850040,-500.0,0.00011408,2]
[353711707,1739995850050,-563.2,0.00011408,2]
[353711709,1739995850061,-500.0,0.00011408,2]
[353711711,1739995850071,-500.0,0.00011408,2]
[353711713,1739995850085,-500.0,0.00011408,2]
[353711715,1739995850095,-500.0,0.00011408,2]
[353711717,1739995850106,-500.0,0.00011408,2]
[353711719,1739995850116,-500.0,0.00011408,2]
[353711721,1739995850127,-500.0,0.00011408,2]
[353711723,1739995850137,-500.0,0.00011408,2]
[353711725,1739995850147,-500.0,0.00011408,2]
[353711727,1739995850160,-500.0,0.00011408,2]
[353711729,1739995850171,-500.0,0.00011408,2]
[353711731,1739995850182,-500.0,0.00011408,2]
[353711733,1739995850193,-500.0,0.00011408,2]
[353711735,1739995850204,-500.0,0.00011408,2]
[353711738,1739995850215,-500.0,0.00011408,2]
[353711740,1739995850225,-1172.61,0.00011408,2]
[353711742,1739995850235,-500.0,0.00011408,2]
[353711744,1739995850245,-500.0,0.00011408,2]
[353711746,1739995850255,-500.0,0.00011408,2]
[353711748,1739995850266,-500.0,0.00011408,2]
[353711750,1739995850276,-879.09,0.00011408,2]
[353711752,1739995850287,-737.96,0.00011408,2]
[353711754,1739995850298,-500.0,0.00011408,2]
[353711756,1739995850309,-962.32,0.00011408,2]
[353711758,1739995850319,-538.45,0.00011408,2]
[353711760,1739995850329,-509.59,0.00011408,2]
[353711762,1739995850339,-500.0,0.00011408,2]
[353711764,1739995850348,-500.0,0.00011408,2]
[353711766,1739995850359,-309.36,0.00011408,2]
[353711768,1739995850369,-550.77096551,0.00011408,2]
[353711770,1739995850380,-546.67,0.00011408,2]
[353711772,1739995850390,-840.65,0.00011408,2]
[353711774,1739995850400,-500.0,0.00011408,2]
[353711776,1739995850410,-1437.42,0.00011408,2]
[353711778,1739995850420,-1356.54,0.00011408,2]
[353711780,1739995850430,-500.0,0.00011408,2]
[353711782,1739995850440,-500.0,0.00011408,2]
[353711784,1739995850450,-500.0,0.00011408,2]
[353711786,1739995850460,-500.0,0.00011408,2]
[353711788,1739995850470,-500.0,0.00011408,2]
[353711790,1739995850481,-785.45,0.00011408,2]
[353711792,1739995850492,-500.0,0.00011408,2]
[353711794,1739995850502,-500.0,0.00011408,2]
[353711796,1739995850512,-500.0,0.00011408,2]
[353711798,1739995850523,-1209.73,0.00011408,2]
[353711800,1739995850534,-500.0,0.00011408,2]
[353711802,1739995850544,-690.95,0.00011408,2]
[353711804,1739995850554,-1489.16,0.00011408,2]
[353711806,1739995850564,-807.67,0.00011408,2]
[353711808,1739995850576,-1423.58,0.00011408,2]
[353711810,1739995850586,-500.0,0.00011408,2]
[353711813,1739995850596,-843.14,0.00011408,2]
[353711815,1739995850607,-500.0,0.00011408,2]
[353711817,1739995850617,-500.0,0.00011408,2]
[353711819,1739995850627,-677.57,0.00011408,2]
[353711821,1739995850637,-945.16,0.00011408,2]
[353711823,1739995850647,-3452.77,0.00011408,2]
[353711825,1739995850657,-752.33,0.00011408,2]
[353711827,1739995850668,-500.0,0.00011408,2]
[353711829,1739995850678,-815.95,0.00011408,2]
[353711831,1739995850688,-932.21,0.00011408,2]
[353711833,1739995850698,-500.0,0.00011408,2]
[353711835,1739995850709,-626.91,0.00011408,2]
[353711837,1739995850719,-662.97,0.00011408,2]
[353711839,1739995850728,-787.68,0.00011408,2]
[353711841,1739995850738,-1571.8,0.00011408,2]
[353711843,1739995850749,-643.58,0.00011408,2]
[353711846,1739995850759,-500.0,0.00011408,2]
[353711848,1739995850769,-740.58,0.00011408,2]
[353711849,1739995850779,-737.13,0.00011408,2]
[353711850,1739995850789,-584.39,0.00011408,2]
[353711851,1739995850799,-715.97,0.00011408,2]
[353711852,1739995850810,-734.84,0.00011408,2]
[353711853,1739995850820,-697.67,0.00011408,2]
[353711854,1739995850830,-802.39,0.00011408,2]
[353711855,1739995850840,-756.21,0.00011408,2]
[353711857,1739995850850,-500.0,0.00011408,2]
[353711859,1739995850860,-500.0,0.00011408,2]
[353711861,1739995850871,-500.0,0.00011408,2]
[353711863,1739995850882,-500.0,0.00011408,2]
[353711865,1739995850893,-937.95,0.00011408,2]
[353711867,1739995850904,-716.59,0.00011408,2]
[353711869,1739995850915,-588.54,0.00011408,2]
[353711871,1739995850937,-500.0,0.00011408,2]
[353711874,1739995850948,-1087.14,0.00011408,2]
[353711876,1739995850960,-615.01,0.00011408,2]
[353711878,1739995850971,-500.0,0.00011408,2]
[353711880,1739995850982,-1762.82,0.00011408,2]
[353711882,1739995850993,-743.19,0.00011408,2]
[353711884,1739995851004,-1029.99,0.00011408,2]
[353711886,1739995851016,-963.52,0.00011408,2]
[353711888,1739995851026,-1039.67,0.00011408,2]
[353711890,1739995851036,-500.0,0.00011408,2]
[353711892,1739995851046,-500.0,0.00011408,2]
[353711894,1739995851056,-500.0,0.00011408,2]
[353711896,1739995851067,-500.0,0.00011408,2]
[353711898,1739995851079,-1014.84,0.00011408,2]
[353711900,1739995851091,-898.51,0.00011408,2]
[353711902,1739995851102,-1434.81,0.00011408,2]
[353711904,1739995851112,-802.62,0.00011408,2]
[353711906,1739995851123,-1157.13,0.00011408,2]
[353711908,1739995851134,-1176.33,0.00011408,2]
[353711910,1739995851145,-1126.62,0.00011408,2]
[353711912,1739995851156,-588.95,0.00011408,2]
[353711914,1739995851166,-500.0,0.00011408,2]
[353711916,1739995851177,-500.0,0.00011408,2]
[353711918,1739995851188,-500.0,0.00011408,2]
[353711920,1739995851199,-865.56,0.00011408,2]
[353711923,1739995851210,-1010.38,0.00011408,2]
[353711925,1739995851220,-500.0,0.00011408,2]
[353711927,1739995851230,-692.91,0.00011408,2]
[353711929,1739995851240,-500.0,0.00011408,2]
[353711931,1739995851251,-500.0,0.00011408,2]
[353711933,1739995851262,-500.0,0.00011408,2]
[353711935,1739995851272,-704.62,0.00011408,2]
[353711937,1739995851282,-500.0,0.00011408,2]
[353711939,1739995851292,-500.0,0.00011408,2]
[353711941,1739995851302,-1732.65,0.00011408,2]
[353711943,1739995851312,-500.0,0.00011408,2]
[353711945,1739995851323,-920.03,0.00011408,2]
[353711947,1739995851333,-601.71,0.00011408,2]
[353711949,1739995851344,-500.0,0.00011408,2]
[353711951,1739995851355,-581.74,0.00011408,2]
[353711953,1739995851366,-588.31,0.00011408,2]
[353711954,1739995851376,-500.0,0.00011408,2]
[353711956,1739995851386,-597.73,0.00011408,2]
[353711957,1739995851396,-500.0,0.00011408,2]
[353711959,1739995851406,-553.99,0.00011408,2]
[353711960,1739995851416,-535.64,0.00011408,2]
[353711962,1739995851427,-504.05,0.00011408,2]
[353711963,1739995851437,-500.0,0.00011408,2]
[353711965,1739995851449,-500.0,0.00011408,2]
[353711966,1739995851459,-337.09478831,0.00011409,2]
[353711968,1739995851469,-500.0,0.00011409,2]
[353711969,1739995851479,-500.0,0.00011409,2]
[353711971,1739995851488,-573.56300224,0.00011409,2]
[353711973,1739995851498,-500.0,0.00011409,2]
[353711974,1739995851508,-247.53759701,0.00011409,2]
[353711976,1739995851518,-500.0,0.00011409,2]
[353711977,1739995851528,-500.0,0.00011409,2]
[353711979,1739995851538,-413.6300716,0.00011411,2]
[353711980,1739995851547,-150.0,0.00011415,2]
[353711982,1739995851556,-500.0,0.00011418,2]
[353711983,1739995851566,-151.51175152,0.00011418,2]
[353711985,1739995851575,-2938.714,0.00011425,2]
[353711987,1739995851585,-593.74,0.00011427,2]
[353711988,1739995851594,-542.9,0.00011427,2]
[353711990,1739995851604,-571.96,0.00011427,2]
[353711992,1739995851614,-941.65,0.00011427,2]
[353711993,1739995851623,-2238.61,0.00011427,2]
[353711995,1739995851633,-565.65,0.00011427,2]
[353711996,1739995851643,-677.86,0.00011427,2]
[353711998,1739995851655,-500.0,0.00011427,2]
[353712000,1739995851665,-705.04,0.00011427,2]
[353712002,1739995851674,-448.36580493,0.00011427,2]
[353712003,1739995851685,-500.0,0.00011427,2]
[353712005,1739995851695,-636.09,0.00011427,2]
[353712007,1739995851705,-771.98,0.00011427,2]
[353712008,1739995851715,-723.14,0.00011427,2]
[353712010,1739995851725,-662.74,0.00011427,2]
[353712012,1739995851736,-1719.04,0.00011427,2]
[353712013,1739995851745,-500.0,0.00011427,2]
[353712015,1739995851755,-220.7088887,0.00011441,2]
[353712017,1739995851765,-1000.0,0.00011442,2]
[353712018,1739995851775,-150.0,0.00011444,2]
[353712020,1739995851785,-150.0,0.00011451,2]
[353712022,1739995851795,-150.0,0.00011453,2]
[353712023,1739995851805,-150.0,0.00011456,2]
[353712025,1739995851815,-150.0,0.00011457,2]
[353712027,1739995851825,-150.0,0.00011457,2]
[353712029,1739995851835,-150.0,0.00011461,2]
[353712030,1739995851845,-150.0,0.00011466,2]
[353712032,1739995851855,-150.0,0.00011469,2]
[353712034,1739995851866,-9696.45179954,0.0001147,2]
[353712035,1739995851875,-152.39893618,0.00011473,2]
[353712037,1739995851885,-153.89395674,0.00011473,2]
[353712039,1739995851895,-161.56766575,0.00011473,2]
[353712040,1739995851905,-500.0,0.00011473,2]
[353712042,1739995851915,-500.0,0.00011473,2]
[353712043,1739995851925,-1078.26,0.00011473,2]
[353712045,1739995851935,-150.0,0.00011473,2]
[353712047,1739995851944,-150.0,0.00011476,2]
[353712048,1739995851954,-150.0,0.00011481,2]
[353712050,1739995851963,-150.0,0.00011487,2]
[353712052,1739995851973,-150.0,0.00011488,2]
[353712053,1739995851983,-5004.98375569,0.00011488,2]
[353712055,1739995851993,-150.0,0.00011489,2]
[353712057,1739995852002,-500.0,0.0001149,2]
[353712058,1739995852012,-500.0,0.0001149,2]
[353712060,1739995852022,-500.0,0.0001149,2]
[353712062,1739995852032,-500.0,0.0001149,2]
[353712064,1739995852042,-500.0,0.0001149,2]
[353712075,1739995852261,-533.42,0.0001149,2]
[353712077,1739995852279,-500.0,0.0001149,2]
[353712079,1739995852289,-500.0,0.0001149,2]
[353712081,1739995852298,-500.0,0.0001149,2]
[353712083,1739995852307,-500.0,0.0001149,2]
[353712085,1739995852318,-500.0,0.0001149,2]
[353712087,1739995852327,-500.0,0.0001149,2]
[353712089,1739995852336,-500.0,0.0001149,2]
[353712091,1739995852346,-500.0,0.0001149,2]
[353712093,1739995852356,-505.76,0.0001149,2]
[353712095,1739995852366,-500.0,0.0001149,2]
[353712097,1739995852375,-500.0,0.0001149,2]
[353712099,1739995852385,-500.0,0.0001149,2]
[353712101,1739995852394,-500.0,0.0001149,2]
[353712103,1739995852404,-500.0,0.0001149,2]
[353712105,1739995852413,-500.0,0.0001149,2]
[353712107,1739995852423,-500.0,0.0001149,2]
[353712109,1739995852432,-288.78904532,0.0001149,2]
[353712111,1739995852441,-500.0,0.0001149,2]
[353712113,1739995852451,-500.0,0.0001149,2]
[353712115,1739995852460,-500.0,0.0001149,2]
[353712117,1739995852470,-500.0,0.0001149,2]
[353712119,1739995852479,-500.0,0.0001149,2]
[353712121,1739995852488,-500.0,0.0001149,2]
[353712123,1739995852497,-500.0,0.0001149,2]
[353712125,1739995852507,-500.0,0.0001149,2]
[353712127,1739995852516,-500.0,0.0001149,2]
[353712129,1739995852525,-500.0,0.0001149,2]
[353712131,1739995852535,-587.31,0.0001149,2]
[353712133,1739995852544,-500.0,0.0001149,2]
[353712135,1739995852553,-283.12015497,0.0001149,2]
[353712137,1739995852563,-500.0,0.0001149,2]
[353712138,1739995852572,-585.71,0.0001149,2]
[353712140,1739995852582,-524.38,0.0001149,2]
[353712142,1739995852591,-500.0,0.0001149,2]
[353712144,1739995852601,-500.0,0.0001149,2]
[353712146,1739995852610,-500.0,0.0001149,2]
[353712149,1739995852620,-314.97662,0.0001149,2]
[353712151,1739995852630,-500.0,0.0001149,2]
[353712152,1739995852642,-500.0,0.0001149,2]
[353712154,1739995852651,-500.0,0.0001149,2]
[353712156,1739995852662,-500.0,0.0001149,2]
[353712159,1739995852672,-500.0,0.0001149,2]
[353712160,1739995852681,-500.0,0.0001149,2]
[353712162,1739995852691,-500.0,0.0001149,2]
[353712164,1739995852700,-522.39,0.0001149,2]
[353712166,1739995852709,-500.0,0.0001149,2]
[353712169,1739995852719,-230.212476,0.0001149,2]
[353712171,1739995852728,-500.0,0.0001149,2]
[353712173,1739995852738,-500.0,0.0001149,2]
[353712175,1739995852748,-157.423366,0.0001149,2]
[353712177,1739995852758,-500.0,0.0001149,2]
[353712179,1739995852767,-500.0,0.0001149,2]
[353712181,1739995852776,-500.0,0.0001149,2]
[353712183,1739995852786,-714.19,0.0001149,2]
[353712185,1739995852795,-500.0,0.0001149,2]
[353712187,1739995852804,-500.0,0.0001149,2]
[353712189,1739995852813,-638.78760818,0.0001149,2]
[353712191,1739995852822,-500.0,0.0001149,2]
[353712192,1739995852831,-500.0,0.0001149,2]
[353712194,1739995852842,-500.0,0.0001149,2]
[353712196,1739995852851,-500.0,0.0001149,2]
[353712198,1739995852860,-500.0,0.0001149,2]
[353712200,1739995852869,-500.0,0.0001149,2]
[353712202,1739995852879,-563.2,0.0001149,2]
[353712204,1739995852888,-500.0,0.0001149,2]
[353712206,1739995852898,-500.0,0.0001149,2]
[353712209,1739995852908,-500.0,0.0001149,2]
[353712211,1739995852920,-500.0,0.0001149,2]
[353712213,1739995852930,-500.0,0.0001149,2]
[353712215,1739995852939,-500.0,0.0001149,2]
[353712217,1739995852949,-500.0,0.0001149,2]
[353712219,1739995852959,-500.0,0.0001149,2]
[353712221,1739995852968,-500.0,0.0001149,2]
[353712223,1739995852978,-500.0,0.0001149,2]
[353712225,1739995852988,-500.0,0.0001149,2]
[353712227,1739995852998,-500.0,0.0001149,2]
[353712229,1739995853008,-500.0,0.0001149,2]
[353712231,1739995853017,-500.0,0.0001149,2]
[353712233,1739995853027,-383.56707811,0.0001149,2]
[353712235,1739995853036,-1172.61,0.0001149,2]
[353712237,1739995853045,-500.0,0.0001149,2]
[353712239,1739995853054,-500.0,0.0001149,2]
[353712241,1739995853064,-500.0,0.0001149,2]
[353712243,1739995853074,-500.0,0.0001149,2]
[353712245,1739995853090,-879.09,0.0001149,2]
[353712247,1739995853100,-737.96,0.0001149,2]
[353712249,1739995853109,-500.0,0.0001149,2]
[353712251,1739995853119,-962.32,0.0001149,2]
[353712253,1739995853130,-538.45,0.0001149,2]
[353712255,1739995853139,-509.59,0.0001149,2]
[353712257,1739995853149,-500.0,0.0001149,2]
[353712259,1739995853160,-500.0,0.0001149,2]
[353712261,1739995853170,-546.67,0.0001149,2]
[353712263,1739995853179,-840.65,0.0001149,2]
[353712265,1739995853188,-500.0,0.0001149,2]
[353712267,1739995853198,-1437.42,0.0001149,2]
[353712269,1739995853207,-1356.54,0.0001149,2]
[353712271,1739995853216,-500.0,0.0001149,2]
[353712273,1739995853226,-500.0,0.0001149,2]
[353712275,1739995853236,-500.0,0.0001149,2]
[353712277,1739995853245,-500.0,0.0001149,2]
[353712279,1739995853255,-500.0,0.0001149,2]
[353712281,1739995853264,-785.45,0.0001149,2]
[353712283,1739995853274,-500.0,0.0001149,2]
[353712285,1739995853284,-500.0,0.0001149,2]
[353712287,1739995853294,-500.0,0.0001149,2]
[353712289,1739995853303,-1209.73,0.0001149,2]
[353712291,1739995853312,-500.0,0.0001149,2]
[353712293,1739995853322,-690.95,0.0001149,2]
[353712295,1739995853331,-1489.16,0.0001149,2]
[353712297,1739995853341,-807.67,0.0001149,2]
[353712299,1739995853351,-1423.58,0.0001149,2]
[353712302,1739995853363,-253.52939653,0.0001149,2]
[353712304,1739995853374,-843.14,0.0001149,2]
[353712305,1739995853384,-500.0,0.0001149,2]
[353712308,1739995853394,-500.0,0.0001149,2]
[353712310,1739995853404,-677.57,0.0001149,2]
[353712311,1739995853413,-945.16,0.0001149,2]
[353712314,1739995853423,-3452.77,0.0001149,2]
[353712316,1739995853433,-752.33,0.0001149,2]
[353712317,1739995853442,-500.0,0.0001149,2]
[353712320,1739995853453,-815.95,0.0001149,2]
[353712322,1739995853462,-932.21,0.0001149,2]
[353712324,1739995853473,-500.0,0.0001149,2]
[353712326,1739995853482,-626.91,0.0001149,2]
[353712328,1739995853491,-662.97,0.0001149,2]
[353712330,1739995853500,-787.68,0.0001149,2]
[353712332,1739995853510,-1571.8,0.0001149,2]
[353712334,1739995853520,-643.58,0.0001149,2]
[353712336,1739995853529,-740.58,0.0001149,2]
[353712338,1739995853539,-737.13,0.0001149,2]
[353712340,1739995853547,-500.0,0.0001149,2]
[353712342,1739995853557,-584.39,0.0001149,2]
[353712344,1739995853567,-715.97,0.0001149,2]
[353712346,1739995853577,-734.84,0.0001149,2]
[353712348,1739995853586,-697.67,0.0001149,2]
[353712350,1739995853595,-802.39,0.0001149,2]
[353712351,1739995853605,-756.21,0.0001149,2]
[353712354,1739995853615,-508.14,0.0001149,2]
[353712355,1739995853624,-500.0,0.0001149,2]
[353712358,1739995853633,-500.0,0.0001149,2]
[353712359,1739995853643,-500.0,0.0001149,2]
[353712361,1739995853653,-937.95,0.0001149,2]
[353712364,1739995853663,-716.59,0.0001149,2]
[353712366,1739995853673,-588.54,0.0001149,2]
[353712368,1739995853682,-500.0,0.0001149,2]
[353712370,1739995853692,-1087.14,0.0001149,2]
[353712372,1739995853701,-615.01,0.0001149,2]
[353712374,1739995853711,-500.0,0.0001149,2]
[353712375,1739995853720,-1762.82,0.0001149,2]
[353712378,1739995853730,-743.19,0.0001149,2]
[353712380,1739995853739,-1029.99,0.0001149,2]
[353712382,1739995853748,-963.52,0.0001149,2]
[353712383,1739995853758,-1039.67,0.0001149,2]
[353712385,1739995853768,-500.0,0.0001149,2]
[353712388,1739995853777,-500.0,0.0001149,2]
[353712390,1739995853788,-500.0,0.0001149,2]
[353712392,1739995853799,-500.0,0.0001149,2]
[353712394,1739995853809,-1014.84,0.0001149,2]
[353712395,1739995853820,-898.51,0.0001149,2]
[353712398,1739995853831,-1434.81,0.0001149,2]
[353712400,1739995853841,-802.62,0.0001149,2]
[353712401,1739995853851,-1157.13,0.0001149,2]
[353712403,1739995853860,-1176.33,0.0001149,2]
[353712406,1739995853870,-1126.62,0.0001149,2]
[353712407,1739995853879,-588.95,0.0001149,2]
[353712409,1739995853888,-500.0,0.0001149,2]
[353712411,1739995853897,-500.0,0.0001149,2]
[353712413,1739995853907,-500.0,0.0001149,2]
[353712415,1739995853919,-865.56,0.0001149,2]
[353712417,1739995853928,-1010.38,0.0001149,2]
[353712419,1739995853938,-500.0,0.0001149,2]
[353712421,1739995853948,-692.91,0.0001149,2]
[353712424,1739995853958,-500.0,0.0001149,2]
[353712425,1739995853968,-500.0,0.0001149,2]
[353712428,1739995853978,-502.67740993,0.0001149,2]
[353712430,1739995853987,-704.62,0.0001149,2]
[353712431,1739995853997,-524.38,0.0001149,2]
[353712433,1739995854006,-500.0,0.0001149,2]
[353712435,1739995854016,-1732.65,0.0001149,2]
[353712437,1739995854025,-500.0,0.0001149,2]
[353712440,1739995854035,-920.03,0.0001149,2]
[353712441,1739995854045,-601.71,0.0001149,2]
[353712444,1739995854054,-500.0,0.0001149,2]
[353712446,1739995854064,-581.74,0.0001149,2]
[353712448,1739995854074,-588.31,0.0001149,2]
[353712450,1739995854089,-500.0,0.0001149,2]
[353712452,1739995854098,-597.73,0.0001149,2]
[353712453,1739995854107,-500.0,0.0001149,2]
[353712454,1739995854118,-553.99,0.0001149,2]
[353712455,1739995854128,-535.64,0.0001149,2]
[353712456,1739995854138,-504.05,0.0001149,2]
[353712457,1739995854147,-289.84,0.0001149,2]
[353712458,1739995854158,-500.0,0.0001149,2]
[353712459,1739995854167,-500.0,0.00011491,2]
[353712460,1739995854178,-500.0,0.00011491,2]
[353712461,1739995854187,-177.63072183,0.00011491,2]
[353712463,1739995854198,-500.0,0.00011491,2]
[353712465,1739995854208,-500.0,0.00011491,2]
[353712467,1739995854218,-500.0,0.00011491,2]
[353712469,1739995854228,-2751.0,0.00011507,2]
[353712472,1739995854238,-593.74,0.00011509,2]
[353712473,1739995854248,-542.9,0.00011509,2]
[353712476,1739995854258,-571.96,0.00011509,2]
[353712477,1739995854268,-941.65,0.00011509,2]
[353712479,1739995854278,-2238.61,0.00011509,2]
[353712481,1739995854287,-565.65,0.00011509,2]
[353712483,1739995854297,-677.86,0.00011509,2]
[353712485,1739995854307,-500.0,0.00011509,2]
[353712487,1739995854317,-705.04,0.00011509,2]
[353712489,1739995854327,-500.0,0.00011509,2]
[353712491,1739995854337,-636.09,0.00011509,2]
[353712494,1739995854347,-771.98,0.00011509,2]
[353712496,1739995854357,-723.14,0.00011509,2]
[353712497,1739995854367,-662.74,0.00011509,2]
[353712499,1739995854377,-1719.04,0.00011509,2]
[353712501,1739995854387,-500.0,0.00011509,2]
[353712503,1739995854397,-150.0,0.00011514,2]
[353712505,1739995854407,-1529.0,0.00011556,2]
[353712507,1739995854417,-150.0,0.00011557,2]
[353712509,1739995854427,-334.21349985,0.0001156,2]
[353712511,1739995854437,-2101.06236,0.0001156,2]
[353712513,1739995854447,-150.0,0.00011561,2]
[353712515,1739995854456,-192.37,0.00011562,2]
[353712518,1739995854466,-150.0,0.00011565,2]
[353712519,1739995854476,-500.0,0.00011572,2]
[353712522,1739995854486,-500.0,0.00011572,2]
[353712524,1739995854499,-500.0,0.00011572,2]
[353712526,1739995854508,-500.0,0.00011572,2]
[353712528,1739995854517,-268.30131981,0.00011572,2]
[353712530,1739995854527,-533.42,0.00011572,2]
[353712531,1739995854536,-500.0,0.00011572,2]
[353712533,1739995854546,-500.0,0.00011572,2]
[353712536,1739995854556,-500.0,0.00011572,2]
[353712537,1739995854566,-500.0,0.00011572,2]
[353712540,1739995854577,-500.0,0.00011572,2]
[353712542,1739995854587,-500.0,0.00011572,2]
[353712544,1739995854597,-500.0,0.00011572,2]
[353712546,1739995854607,-500.0,0.00011572,2]
[353712548,1739995854616,-505.76,0.00011572,2]
[353712550,1739995854625,-500.0,0.00011572,2]
[353712551,1739995854634,-500.0,0.00011572,2]
[353712553,1739995854644,-500.0,0.00011572,2]
[353712555,1739995854653,-500.0,0.00011572,2]
[353712557,1739995854663,-500.0,0.00011572,2]
[353712559,1739995854672,-500.0,0.00011572,2]
[353712561,1739995854688,-500.0,0.00011572,2]
[353712563,1739995854698,-484.85861068,0.00011572,2]
[353712565,1739995854708,-500.0,0.00011572,2]
[353712568,1739995854718,-500.0,0.00011572,2]
[353712569,1739995854731,-500.0,0.00011572,2]
[353712571,1739995854740,-500.0,0.00011572,2]
[353712573,1739995854749,-500.0,0.00011572,2]
[353712575,1739995854759,-500.0,0.00011572,2]
[353712577,1739995854771,-500.0,0.00011572,2]
[353712579,1739995854781,-500.0,0.00011572,2]
[353712581,1739995854791,-500.0,0.00011572,2]
[353712583,1739995854800,-587.31,0.00011572,2]
[353712585,1739995854810,-500.0,0.00011572,2]
[353712587,1739995854819,-500.0,0.00011572,2]
[353712589,1739995854829,-585.71,0.00011572,2]
[353712591,1739995854839,-524.38,0.00011572,2]
[353712593,1739995854849,-500.0,0.00011572,2]
[353712595,1739995854858,-500.0,0.00011572,2]